Cogmind - Beta 10 @@@ ROGUE MODE // 2020.09.12 @ 18:04:09 Player: Torako Result: Destroyed by Nuclear Core chain reaction Performance ------------- Evolutions (1) 500 Regions Visited (5) 1000 Robots Destroyed (80) 400 Value Destroyed (1427) 1427 Prototype IDs (39) 780 Alien Tech Used (0) 0 Bonus (683) 683 TOTAL SCORE: 4790 Bonus ------- High Alert Combat Kills 195 Follower Combat Kills 279 Aligned with FarCom 300 Friendly Fire -91 Cogmind --------- Core Integrity 0/400 Matter 112/300 Energy 98/100 System Corruption 3% Temperature Cool (159) Movement Rolling (90) Location -9/Exiles Parts ------- > --- POWER (1) -------- (None) > --- PROPULSION (2) --- Armored Wheel Armored Wheel > --- UTILITY (4) ------ Advanced Sensor Array > --- WEAPON (2) ------- Assault Cannon Advanced Assault Cannon > --- INVENTORY (4) ---- High-capacity Matter Pod (116) Heavy Assault Rifle Mini Grenade Launcher Peak State ------------ > --- POWER ------------ Improved Ion Engine > --- PROPULSION ------- Light Treads Armored Wheel > --- UTILITY ---------- Advanced Sensor Array Hardened Heavy Armor Plating Reflective Plating > --- WEAPON ----------- Assault Cannon Advanced Assault Cannon > --- INVENTORY -------- Mini Grenade Launcher EMP Trap EMP Trap [Rating: 26] Favorites ----------- Power Cooled Ion Engine Engine Cooled Ion Engine Propulsion Light Treads Treads Light Treads Wheel Armored Wheel Utility Large Storage Unit Device Trap Extractor Storage Large Storage Unit Processor Terrain Scan Processor Protection Reflective Plating Weapon Assault Cannon Energy Gun Improved EM Shotgun Ballistic Gun Heavy Assault Rifle Ballistic Cannon Assault Cannon Launcher Grenade Launcher Special Melee Weapon Datajack Build | -11 -10 -10 -9 -9 -9 ------- Run | Scr Mat Min Mat Min Exi Slots Evolved 2 | . . . 2 . . Power . | . . . . . . Propulsion . | . . . . . . Utility 2 | . . . 2 . . Weapon . | . . . . . . Parts Attached 70 | 6 2 8 37 8 9 Power 7 | 1 1 1 3 1 . Engine 7 | 1 1 1 3 1 . Core . | . . . . . . Reactor . | . . . . . . Propulsion 13 | 2 . 2 7 1 1 Treads 6 | . . 1 5 . . Leg . | . . . . . . Wheel 7 | 2 . 1 2 1 1 Hover . | . . . . . . Flight . | . . . . . . Utility 23 | 1 1 1 15 2 3 Device 4 | . 1 . 2 . 1 Storage 4 | 1 . . 3 . . Processor 1 | . . . 1 . . Hackware . | . . . . . . Protection 14 | . . 1 9 2 2 Artifact . | . . . . . . Weapon 27 | 2 . 4 12 4 5 Energy Gun 10 | 1 . 2 7 . . Energy Cannon . | . . . . . . Ballistic Gun 2 | 1 . 1 . . . Ballistic Cannon 8 | . . . 3 2 3 Launcher 5 | . . 1 1 2 1 Special Weapon . | . . . . . . Impact Weapon . | . . . . . . Slashing Weapon . | . . . . . . Piercing Weapon . | . . . . . . Special Melee Weapon 2 | . . . 1 . 1 Unidentified Prototypes 1 | . . . 1 . . Parts Lost 17 | . . 2 8 3 4 Power 2 | . . . . 1 1 Propulsion 6 | . . 1 3 1 1 Utility 5 | . . . 2 1 2 Weapon 4 | . . 1 3 . . Highest Loss Streak 4 | . . 1 4 2 4 Average Slot Usage (%) 96 | . 97 99 95 99 90 Engine 11 | . 14 14 11 11 10 Treads 13 | . . 10 14 16 10 Wheel 9 | . 28 17 6 5 11 Device 3 | . 11 4 2 2 2 Storage 27 | . 14 14 31 33 23 Protection 7 | . . 9 6 8 9 Energy Gun 8 | . 14 13 13 . . Ballistic Gun 2 | . 14 14 . . . Ballistic Cannon 9 | . . . 6 16 15 Launcher 2 | . . . . 5 4 Naked Turns . | . . . . . . Heaviest Build 71 | 12 13 20 70 70 71 Greatest Support 40 | 20 20 20 40 40 24 Greatest Overweight (x) 5 | 1 . 1 4 5 5 Average Overweight (x) 2 | . . . 1 3 4 Largest Inventory Capacity 22 | 6 6 6 22 22 22 Average Capacity 17 | 5 6 6 21 22 16 Most Carried 22 | 6 6 6 22 22 22 Average Carried 16 | 3 5 5 19 21 16 Final Capacity 22 | 6 6 6 22 22 4 Final Carried 22 | 6 6 6 22 22 3 Class Distribution -------------------- 69% | Hauler-Mutant 17% | Mutant 12% | Scavenger-Mutant Dominant Class ---------------- Mutant | -10/Materials Scavenger-Mutant | -10/Mines Hauler-Mutant | -9/Materials Hauler-Mutant | -9/Mines Hauler-Mutant | -9/Exiles Resources | -11 -10 -10 -9 -9 -9 ----------- Run | Scr Mat Min Mat Min Exi Matter Collected 1580 | 260 22 338 560 316 84 Remotely . | . . . . . . Salvage Created 1948 | . 108 99 1597 112 32 Parts 133 | . 5 14 105 9 . Haulers Intercepted 1 | . . . 1 . . Recyclers Shooed . | . . . . . . Parts Field Recycled . | . . . . . . Retrieved Matter . | . . . . . . Parts Self-Destructed . | . . . . . . Prevented . | . . . . . . Kills | -11 -10 -10 -9 -9 -9 ------- Run | Scr Mat Min Mat Min Exi Combat Hostiles Destroyed 65 | . 2 6 39 11 7 Guns 23 | . 2 3 18 . . Cannons 13 | . . . 10 1 2 AOE 29 | . . 3 11 10 5 Classes Destroyed 13 | . 1 3 7 2 . Worker 6 | . . 1 4 1 . Builder 1 | . . . 1 . . Tunneler 1 | . . 1 . . . Hauler 1 | . . . 1 . . Recycler 1 | . . . . 1 . Mechanic 1 | . . . 1 . . Operator 2 | . . . 2 . . Watcher 2 | . . . 2 . . Swarmer 22 | . . 5 15 2 . Grunt 15 | . 2 1 12 . . Brawler 2 | . . . 2 . . Sentry 10 | . . . 10 . . Assembled 16 | . . . . 9 7 Best Kill Streak 7 | . 2 4 7 6 7 Combat Bots Only 7 | . 2 3 6 6 7 Max Kills in Single Turn 4 | . 1 3 4 4 2 Gunslinging . | . . . . . . Exploded 3 | . . 2 3 2 2 Melee . | . . . . . . Uniques/NPCs Destroyed . | . . . . . . Combat | -11 -10 -10 -9 -9 -9 -------- Run | Scr Mat Min Mat Min Exi Damage Taken 3349 | . 114 271 1625 306 1033 Core 439 | . . 36 243 30 130 Absorbed by Shields . | . . . . . . Core Remaining (%) 92 | 100 . 85 . . . Volleys Fired 162 | . 12 17 93 18 22 Largest 2 | . 2 2 2 2 2 Hottest 101 | . 70 73 101 88 92 Shots Fired 284 | . 24 30 176 24 30 Gun 175 | . 24 28 123 . . Cannon 88 | . . . 50 12 26 Launcher 21 | . . 2 3 12 4 Special . | . . . . . . Kinetic 122 | . 12 15 57 12 26 Thermal 37 | . 12 13 12 . . Explosive 21 | . . 2 3 12 4 Electromagnetic 104 | . . . 104 . . Robot Hit Streak 20 | . 10 7 20 13 4 Robot Miss Streak 4 | . 2 2 4 3 3 Penetration Max . | . . . . . . Secondary Targets 3 | . . 1 2 . . Max Gunslinging Chain 1 | . . 1 1 . . Shots Hit Robots 202 | . 17 20 130 15 20 Core Hits 126 | . 6 15 74 20 11 Critical Hits 2 | . . . 2 . . Critical Kills . | . . . . . . Critical Parts Destroyed 2 | . . . 2 . . Melee Attacks 3 | . . . . . 3 Impact . | . . . . . . Slashing . | . . . . . . Piercing . | . . . . . . Sneak Attacks 3 | . . . . . 3 Combat Hostiles . | . . . . . . Follow-up Attacks . | . . . . . . Damage Inflicted 5500 | . 193 524 3095 911 777 Guns 1939 | . 193 256 1490 . . Cannons 1280 | . . . 697 199 384 Explosions 2248 | . . 268 895 692 393 Melee . | . . . . . . Ramming 33 | . . . 13 20 . Kinetic 1519 | . 68 104 764 199 384 Thermal 1043 | . 125 152 766 . . Explosive 1629 | . . 268 276 692 393 Electromagnetic 1276 | . . . 1276 . . Impact . | . . . . . . Slashing . | . . . . . . Piercing . | . . . . . . Highest Corruption 3 | . . . 2 3 3 Average Corruption 2 | . . . 1 2 3 Corruption Purged . | . . . . . . Effects 47 | . . . 22 13 12 Message Errors 17 | . . . 5 5 7 Matter Fused 4 | . . . . 1 3 Heat Flow Errors 5 | . . . 2 2 1 Energy Discharges 6 | . . . 4 1 1 Data Loss (minor) 11 | . . . 9 2 . Targeting Errors 4 | . . . 2 2 . Overload Shots . | . . . . . . Overflow Damage 51 | . . . 30 14 7 Projectiles 23 | . . . 10 13 . Explosions 28 | . . . 20 1 7 Melee . | . . . . . . Knockbacks 13 | . . . 6 2 5 Impact . | . . . . . . Kinetic 13 | . . . 6 2 5 Secondary . | . . . . . . Self-Inflicted Damage 193 | . . 31 121 41 . Shots 9 | . . 2 4 3 . Rammed 11 | . 1 . 5 5 . Targets Rammed 11 | . 1 . 5 5 . Kicked . | . . . . . . Crushed . | . . . . . . Highest Temperature 521 | . 233 97 325 156 521 Average Temperature 98 | . 108 31 64 70 250 Received Heat Transfer 722 | . 63 69 501 69 20 Effects 8 | . . . 1 . 7 Shutdowns 2 | . . . . . 2 Energy Bleed 1 | . . . . . 1 Interference 2 | . . . 1 . 1 Short Circuit 1 | . . . . . 1 Damage (minor) 2 | . . . . . 2 Siege Activations . | . . . . . . Robots Corrupted . | . . . . . . Combat Hostiles . | . . . . . . Parts Fried 8 | . . . 8 . . Impact Corruptions . | . . . . . . Robots Melted . | . . . . . . Combat Hostiles . | . . . . . . Parts Melted 2 | . 1 1 . . . Heat Transferred 1875 | . 370 420 1085 . . Parts Sabotaged . | . . . . . . Parts Stolen . | . . . . . . Parts Stripped . | . . . . . . Power Chain Reactions 9 | . . . 9 . . Missiles Intercepted . | . . . . . . Alert | -11 -10 -10 -9 -9 -9 ------- Run | Scr Mat Min Mat Min Exi Peak Influence 769 | . 107 237 769 295 . Initial 295 | . . 41 33 295 . Average 269 | . 73 101 429 142 . Maximum Alert Level 3 | . . 1 3 1 . Low Security (%) 55 | 100 100 97 29 63 . Level 1 12 | . . 2 3 36 . Level 2 23 | . . . 49 . . Level 3 8 | . . . 17 . . Level 4 . | . . . . . . Level 5 . | . . . . . . High Security . | . . . . . . Max Security . | . . . . . . Squads Dispatched 7 | . . . 6 1 . Investigation 4 | . . . 3 1 . Extermination . | . . . . . . Reinforcement 2 | . . . 2 . . Assault 1 | . . . 1 . . Garrison . | . . . . . . Intercept . | . . . . . . Construction Impeded . | . . . . . . Haulers Reinforced . | . . . . . . Stealth | -11 -10 -10 -9 -9 -9 --------- Run | Scr Mat Min Mat Min Exi Distress Signals 5 | . . . 5 . . Communications Jammed . | . . . . . . Distress Signals . | . . . . . . Times Spotted 118 | . 4 13 76 15 10 Peak Tracking Total 9 | . 3 3 8 4 9 Tactical Retreats 8 | . . . 7 1 . Traps | -11 -10 -10 -9 -9 -9 ------- Run | Scr Mat Min Mat Min Exi Traps Triggered 4 | . . . 4 . . Indirectly . | . . . . . . Trap Hack Attempts 8 | . . . 8 . . Triggered . | . . . . . . Disarmed . | . . . . . . Reprogrammed 2 | . . . 2 . . Reused 1 | . . . . . 1 Traps Extracted 2 | . . . 2 . . Installed 2 | . . . . . 2 Triggered . | . . . . . . Machines | -11 -10 -10 -9 -9 -9 ---------- Run | Scr Mat Min Mat Min Exi Machines Disabled 5 | . . . 2 . 3 Max in Single Turn 1 | . . . 1 . 1 Machines Sabotaged . | . . . . . . Garrisons Compromised . | . . . . . . Overloaded Fab Kills . | . . . . . . Fab Network Shutdowns . | . . . . . . Hacking | -11 -10 -10 -9 -9 -9 --------- Run | Scr Mat Min Mat Min Exi Machines Accessed 16 | . 3 1 10 1 1 Terminals 13 | . 3 1 9 . . Fabricators . | . . . . . . Repair Stations . | . . . . . . Recycling Units 1 | . . . 1 . . Scanalyzers . | . . . . . . Garrison Access . | . . . . . . Total Hacks 49 | . 13 4 30 1 1 Successful 27 | . 8 1 16 1 1 Failed 21 | . 5 3 13 . . Catastrophic 4 | . . . 4 . . Database Lockouts 1 | . . . 1 . . Manual 39 | . 13 4 21 . 1 Terminals 45 | . 13 4 28 . . Fabricators . | . . . . . . Repair Stations . | . . . . . . Recycling Units 2 | . . . 2 . . Scanalyzers . | . . . . . . Garrison Access . | . . . . . . Terminal Hacks 18 | . 5 1 10 1 1 Part Schematic 1 | . 1 . . . . Robot Schematic 1 | . 1 . . . . Robot Analysis 6 | . 2 . 4 . . Prototype ID Bank 2 | . . . 2 . . Open Door 1 | . . . . 1 . Terminal Index 1 | . 1 . . . . Unreport Threat 2 | . . 1 1 . . Recall Investigation 2 | . . . 2 . . Zone Layout 1 | . . . 1 . . EX-Prototype ID Bank 1 | . . . . . 1 Fabricator Hacks . | . . . . . . Repair Station Hacks . | . . . . . . Recycling Unit Hacks 2 | . . . 2 . . Process 1 | . . . 1 . . Report Inventory 1 | . . . 1 . . Scanalyzer . | . . . . . . Garrison Access Hacks . | . . . . . . Unauthorized Hacks 7 | . 3 . 4 . . Terminals 7 | . 3 . 4 . . Botnet 5 | . 3 . 2 . . Disrupt 1 | . . . 1 . . Operators 1 | . . . 1 . . Fabricators . | . . . . . . Repair Stations . | . . . . . . Recycling Units . | . . . . . . Scanalyzers . | . . . . . . Garrison Access . | . . . . . . Data Cores Recovered 1 | . . . 1 . . Used 1 | . . . 1 . . Hacking Detections 13 | . 3 1 9 . . Full Trace Events 3 | . . . 3 . . Feedback Events 1 | . . . 1 . . Corruption 1 | . . . 1 . . Feedback Blocked . | . . . . . . Robot Schematics Acquired 1 | . 1 . . . . Robots Built . | . . . . . . Matter . | . . . . . . Time . | . . . . . . Total Robot Build Rating . | . . . . . . Part Schematics Acquired 1 | . 1 . . . . Parts Built . | . . . . . . Matter . | . . . . . . Time . | . . . . . . Total Part Build Rating . | . . . . . . Parts Repaired . | . . . . . . Time . | . . . . . . Parts Recycled . | . . . . . . Recycled Matter 197 | . . . 197 . . Retrieved Matter . | . . . . . . Retrieved Components . | . . . . . . Parts Scanalyzed . | . . . . . . Part Schematics Acquired . | . . . . . . Parts Damaged . | . . . . . . Bothacking | -11 -10 -10 -9 -9 -9 ------------ Run | Scr Mat Min Mat Min Exi Used RIF Installer . | . . . . . . Robots Hacked 3 | . . . . . 3 Non-combat 2 | . . . . . 2 Combat 1 | . . . . . 1 Robot Hacks Applied 3 | . . . . . 3 parse_system 3 | . . . . . 3 Relay Couplers Released . | . . . . . . Robots Rewired . | . . . . . . Allies Hacked . | . . . . . . Hacks Repelled . | . . . . . . Allies | -11 -10 -10 -9 -9 -9 -------- Run | Scr Mat Min Mat Min Exi Total Allies 5 | . . 5 . . . Largest Group 4 | . . 4 4 . . Highest-Rated Group 78 | . . 78 78 . . Highest-Rated Ally 31 | . . 31 31 . . Total Orders . | . . . . . . Ally Attacks 84 | . . 36 48 . . Total Damage 1128 | . . 407 721 . . Kills 15 | . . 7 8 . . Allies Corrupted . | . . . . . . Allies Melted . | . . . . . . Intel | -11 -10 -10 -9 -9 -9 ------- Run | Scr Mat Min Mat Min Exi Robot Analysis Total 6 | . 2 . 4 . . Derelict Logs Recovered 4 | . . 2 . 2 . Drone Launches . | . . . . . . Drone Recoveries . | . . . . . . Exploration | -11 -10 -10 -9 -9 -9 ------------- Run | Scr Mat Min Mat Min Exi Turns Passed 4729 | 59 184 748 1986 1099 653 Spaces Moved 2904 | 56 174 656 1005 618 395 Core 2 | 2 . . . . . Treads 859 | . . . 608 248 3 Legs . | . . . . . . Wheels 2043 | 54 174 656 397 370 392 Hover . | . . . . . . Flight . | . . . . . . Fastest Speed 50 | 50 80 80 90 140 90 Average Speed 130 | 79 80 87 153 156 136 Slowest Speed 220 | 100 80 90 220 220 200 Overloaded Moves . | . . . . . . Propulsion Burnouts . | . . . . . . Robots Hopped . | . . . . . . Cave-ins Triggered . | . . . . . . Exploration Rate (%) 65 | 3 39 99 96 98 59 Regions Visited 5 Branch Regions 3 Pre-discovered Areas 2 | . . 1 . 1 . Known Exits Taken . | . . . . . . Unknown Exits Taken 5 | 1 1 1 1 1 . Scrap Searched 4 | . . 2 . 2 . Spaces Dug 18 | . . . 1 17 . Terrain Destroyed 189 | . . 21 66 79 23 Melee . | . . . . . . Projectile 16 | . . . 10 2 4 AOE 173 | . . 21 56 77 19 Terrain Rammed . | . . . . . . Walls Destroyed . | . . . . . . Machines Disabled . | . . . . . . Actions | -11 -10 -10 -9 -9 -9 --------- Run | Scr Mat Min Mat Min Exi Total 3548 | 67 198 805 1276 722 480 Wait 279 | . 3 113 68 67 28 Move 2899 | 55 173 655 1004 617 395 Hop . | . . . . . . Pick Up 58 | 6 3 4 32 4 9 Fast Attach 31 | 6 1 3 19 . 2 Attach 15 | . . . 9 3 3 Detach 10 | . . . 9 . 1 Swap 24 | . 1 5 9 5 4 Drop 46 | . 4 8 20 3 11 Fire 162 | . 12 17 93 18 22 Melee 3 | . . . . . 3 Ram 2 | . 1 . . 1 . Kick . | . . . . . . Crush 9 | . . . 5 4 . Escape Stasis . | . . . . . . Rewire . | . . . . . . Trap 10 | . . . 8 . 2 Miscellaneous . | . . . . . . Route ------- -11/Scrapyard -10/Materials (discovered 2 exits: *Min x2) -10/Mines (discovered 2 exits: *Mat x2) -9/Materials (discovered 4 exits: *Mat x3 / *Min) -9/Mines (discovered 3 exits: *Mat x2 / *Exi) -9/Exiles History --------- Turn | Location | Event 12 | -11/Scrapyard | Discovered new exit (range 16) 60 | -11/Scrapyard | Entered Materials 152 | -10/Materials | Discovered new exit (range 4) 190 | -10/Materials | Discovered new exit (range 9) 244 | -10/Materials | Entered Mines 313 | -10/Mines | Assisted by bots powering up and referring to "LRC-V3" 318 | -10/Mines | Build established: Mutant 747 | -10/Mines | Discovered new exit (range 9) 757 | -10/Mines | Build established: Scavenger-Mutant 815 | -10/Mines | Discovered new exit (range 4) 819 | -10/Mines | Learned location of 1 exit from Materials 992 | -10/Mines | Entered Materials 992 | -9/Materials | Accompanied by 4 allies 992 | -9/Materials | Evolved 2 slots: Utility x2 993 | -9/Materials | Identified exit to Materials 997 | -9/Materials | Led the pair of lost Derelicts to an unsafe place 1241 | -9/Materials | Central database locked down 1251 | -9/Materials | Discovered exit to Materials (range 16) 1527 | -9/Materials | Build established: Hauler-Mutant 1627 | -9/Materials | Lost 4 parts (2n1u1w) 1777 | -9/Materials | Core integrity fell below 50% 2057 | -9/Materials | Discovered exit to Materials (range 8) 2192 | -9/Materials | First assault squad dispatched 2268 | -9/Materials | Lost 3 parts (1n2w) 2535 | -9/Materials | Discovered new exit (range 15) 2978 | -9/Materials | Entered Mines 2980 | -9/Mines | Met a Derelict bent on vengeance 3041 | -9/Mines | Deemed a non-threat by the Exiles lab entrance 3043 | -9/Mines | Discovered new exit (range 5) 3157 | -9/Mines | Learned location of Storage (-8) 3384 | -9/Mines | Assembled infested the area 3758 | -9/Mines | Met a Derelict shopkeep closing up shop 4077 | -9/Mines | Entered Exiles 4112 | -9/Exiles | Met 8R-AWN 4136 | -9/Exiles | Met EX-HEX 4177 | -9/Exiles | Met EX-BIN 4269 | -9/Exiles | Aligned with FarCom system 4271 | -9/Exiles | Given EX-Vault access code 4307 | -9/Exiles | Opened EX-Vault 4320 | -9/Exiles | Found Chronowheel 4336 | -9/Exiles | Found YOLO Cannon 4369 | -9/Exiles | Warned to stay clear of 0b10 Research branches 4406 | -9/Exiles | Met EX-DEC 4647 | -9/Exiles | Attacked by the Exiles 4693 | -9/Exiles | Destroyed 7 combat bots 4699 | -9/Exiles | Core integrity fell below 20% 4730 | -9/Exiles | Destroyed by Nuclear Core chain reaction Last Messages --------------- Imp. Ion Engine destroyed. HV Slug penetrates Earth. 8R-AWN knocked back. Penetrated by HV Slug. HV Slug penetrates Earth. Penetrated by HV Slug. Hrd. Heavy Armor Plating destroyed. HV Slug penetrates Earth. The unstable cave ceiling collapses. Penetrated by HV Slug. HV Slug penetrates Earth. HV Slug penetrates Wall. HV Slug penetrates Earth. Destroyed 8R-AWN's Armor/TH. Penetrated by HV Slug. HV Slug penetrates Earth. Penetrated by HV Slug. HV Slug penetrates Earth. PDA#,CXUC/TDDH HF X<94>LVI Rigged Nuclear Core explodes. Map ----- +----------------------------------------------------+ | ?????????????????????????????????????????????????? | | ?????????????????????????????????????????????????? | | ?????????????????????????????????????????????????? | | ?????????????????????????????????????????????????? | | ?????????????????????????????????????????????????? | | ?????????????????????????????????????????????????? | | ?????????????????????????????????????????????????? | | ?????????????????????????????????????????????????? | | ?????????????????????????????????????????????????? | | ?????????????????????????????????????????????????? | | ?????????????????????????????????????????????????? | | ?????????????????????????????????????????????????? | | ????????????????????????????????????? ??????????? | | ????????????????????????????????????? ????????? | | ##??????????????????????????????????? ????????? | | "##?????????????????????????????????# #????????? | | #??????????##???????????????????## ##???????? | | ""#??????????# ??????????????????# #???????? | | "#??????????#"####???????????????# #???????? | | "##???????#### #??????????????## ????????? | | ""###?????# #?????????????## #?????????? | | """#????## #????????????# #?????????? | | "#????# # g ##????????### #??????????? | | ##??## ########## #??????????? | | ##?# % ;""""## #???????????? | | ### !*!@/ ] * ##??????????? | | # % ]![ #??????????? | | # [! !!] ##?????????? | | ""## " #;;# ###???????? | | #"""###### ### "### * ###?????? | | ######????##??# ###### ##????? | | ##?????????????## #????### #????? | | ##???????????????## ??????### #????? | | ^ ""#??????????????????# ???????### #????? | | "##???????????????????# ???????#" ##???? | | """"##?????????????????????# ??????#### ###?? | | #####???????????????????????# #????????# ##? | | ?????????????????????????????# ????????## ## | | ??????????????????????????????##?????????### | | ???????????????????????????????????????????# # | | ???????????????????????????????????????????## ## | | ????????????????????????????????????????????#####? | | ?????????????????????????????????????????????????? | | ?????????????????????????????????????????????????? | | ?????????????????????????????????????????????????? | | ?????????????????????????????????????????????????? | | ?????????????????????????????????????????????????? | | ?????????????????????????????????????????????????? | | ?????????????????????????????????????????????????? | | ?????????????????????????????????????????????????? | +----------------------------------------------------+ Best States ------------- Heat Dissipation 28 Energy Generation 14 Energy Capacity 280 Matter Stores 300 Matter Capacity 300 Sight Range 16 Robot Scan Range 16 Terrain Scan Density 10 Armor Coverage 750 Resistance: TH 10 Evasion (%) 44 Recoil Reduction 2 Item Schematics ----------------- Hcp. Storage Unit | -10/Materials | Hacked Robot Schematics ------------------ M-13 Machinist | -10/Materials | Hacked Fabricated ------------ Nothing Alien Tech Used ----------------- None Achievements -------------- None Challenges ------------ None Game ------ Seed DisruptorChainProtection Manual? 0 Play Time 00:37:18 Cumulative 235.0 hours Start 2020.09.12 @ 17:17:50 End 2020.09.12 @ 18:04:09 Sessions 1 Manual Loads 0 Difficulty Rogue Special Mode None Game No. 251 Rogue 251 Adventurer 0 Explorer 0 Win Type - Total 12 Types 8/0/3/1/0/0/0/0/0 Lore% 76 Gallery% 87 Achievement% 67 Wizard Run 0 Options --------- ASCII 0 Keyboard 1 Movement Numpad Keybinds 0 Fullscreen 1 Font 20/SmallcapsGlow Map View 66x50 Tactical HUD 1 Map Filters NONE Filters NONE Steam 1 RUN: cc864cd5-64ac-4d78-a503-6a7138fa2247